bitfinex/quotes_BTCUSD_20241211
["timestamp","ask_amount","ask_price","bid_price","bid_amount"]
[1733938167401,1.15952086,100600.0,100590.0,0.00056435]
[1733938167575,1.24885028,100600.0,100590.0,0.00056435]
[1733938168406,0.98118277,100600.0,100590.0,0.00356435]
[1733938168717,0.98618277,100600.0,100590.0,0.00356435]
[1733938168916,0.98618277,100600.0,100590.0,0.00056435]
[1733938169115,0.99218277,100600.0,100590.0,0.00056435]
[1733938169320,1.17041926,100600.0,100590.0,0.00056435]
[1733938169682,1.0344082,100600.0,100590.0,0.00056435]
[1733938170100,1.16808067,100600.0,100590.0,0.00056435]
[1733938170511,1.25717772,100600.0,100590.0,0.00056435]
[1733938172614,1.28929816,100600.0,100590.0,0.00056435]
[1733938173444,1.0662419,100600.0,100590.0,0.00056435]
[1733938175325,1.28929816,100600.0,100590.0,0.00056435]
[1733938175540,1.65347227,100600.0,100590.0,0.00056435]
[1733938175778,1.48539478,100600.0,100590.0,0.00056435]
[1733938176199,1.13622404,100600.0,100590.0,0.00056435]
[1733938176398,0.88493129,100600.0,100590.0,0.00056435]
[1733938176601,1.28622404,100600.0,100590.0,0.00056435]
[1733938177011,1.06316778,100600.0,100590.0,0.00056435]
[1733938177419,1.08616778,100600.0,100590.0,0.00056435]
[1733938177628,1.40930961,100600.0,100590.0,0.00056435]
[1733938177833,1.18625335,100600.0,100590.0,0.00056435]
[1733938178237,1.30922404,100600.0,100590.0,0.00056435]
[1733938178833,1.08616778,100600.0,100590.0,0.00056435]
[1733938179442,1.30922404,100600.0,100590.0,0.00056435]
[1733938179977,1.4452351,100600.0,100590.0,0.00056435]
[1733938180180,1.35619478,100600.0,100590.0,0.00056435]
[1733938180378,1.44521915,100600.0,100590.0,0.00056435]
[1733938180733,1.35619478,100600.0,100590.0,0.00056435]
[1733938180962,1.3591992,100600.0,100590.0,0.00056435]
[1733938182876,1.44822015,100600.0,100590.0,0.00056435]
[1733938183082,1.31220909,100600.0,100590.0,0.00056435]
[1733938184179,1.22318814,100600.0,100590.0,0.00056435]
[1733938189116,0.198826,100590.0,100580.0,0.0003038]
[1733938189335,0.8442543,100590.0,100580.0,0.00046873]
[1733938190017,0.84423958,100590.0,100580.0,0.00046873]
[1733938190439,0.84423958,100590.0,100580.0,0.00146873]
[1733938190640,0.84523958,100590.0,100580.0,0.00146873]
[1733938190889,0.84522739,100590.0,100580.0,0.00146873]
[1733938191382,0.84422739,100590.0,100580.0,0.00046873]
[1733938191587,0.85022739,100590.0,100580.0,0.00046873]
[1733938191963,0.84522739,100590.0,100580.0,0.00046873]
[1733938192199,0.85022739,100590.0,100580.0,0.00046873]
[1733938192813,1.37722739,100590.0,100580.0,0.00046873]
[1733938193017,1.37622739,100590.0,100580.0,0.00046873]
[1733938193198,1.37722739,100590.0,100580.0,0.00046873]
[1733938194030,1.13623845,100590.0,100580.0,0.00046873]
[1733938194183,1.37282831,100590.0,100580.0,0.00046873]
[1733938194388,0.80785706,100580.0,100570.0,0.0013863]
[1733938194595,0.80785706,100580.0,100570.0,0.0004]
[1733938194596,1.17281924,100580.0,100570.0,0.0004]
[1733938195264,1.48502196,100580.0,100570.0,0.0004]
[1733938196225,1.48602196,100580.0,100570.0,0.0014]
[1733938196824,1.48602196,100580.0,100570.0,0.0004]
[1733938197081,1.48702196,100580.0,100570.0,0.0004]
[1733938197312,1.39736302,100580.0,100570.0,0.0004]
[1733938197511,1.39636302,100580.0,100570.0,0.0004]
[1733938197696,1.40136302,100580.0,100570.0,0.0004]
[1733938198058,1.47100172,100580.0,100570.0,0.0004]
[1733938198260,1.40136302,100580.0,100570.0,0.0004]
[1733938199162,1.25136302,100580.0,100570.0,0.0004]
[1733938199363,1.40136302,100580.0,100570.0,0.0004]
[1733938199562,1.40134836,100580.0,100570.0,0.0004]
[1733938200482,1.43347449,100580.0,100570.0,0.0004]
[1733938200735,1.57009576,100580.0,100570.0,0.0004]
[1733938201478,1.57009576,100580.0,100560.0,0.0153603]
[1733938201479,0.348866,100570.0,100560.0,0.0153603]
[1733938201678,1.32858914,100570.0,100540.0,0.14738442]
[1733938201811,0.32963006,100560.0,100540.0,0.14738442]
[1733938202016,0.12330845,100560.0,100550.0,0.0453]
[1733938202226,0.10030845,100560.0,100550.0,0.114917]
[1733938203333,0.00016493,100570.0,100560.0,0.11921]
[1733938204044,0.00116493,100570.0,100560.0,0.11921]
[1733938204247,0.00016493,100570.0,100560.0,0.11921]
[1733938204455,0.00016493,100570.0,100560.0,0.26921]
[1733938204456,0.00116493,100570.0,100560.0,0.26921]
[1733938204867,0.00016493,100570.0,100560.0,0.35061]
[1733938205699,0.00016493,100570.0,100560.0,0.35161]
[1733938206756,0.00016493,100570.0,100560.0,0.35061]
[1733938207171,0.00016493,100570.0,100560.0,0.20061]
[1733938207377,0.00016493,100570.0,100560.0,0.20361]
[1733938208213,0.00016493,100570.0,100560.0,0.20460437]
[1733938208436,0.00016493,100570.0,100560.0,0.35460437]
[1733938208646,0.00016493,100570.0,100560.0,0.35361]
[1733938208844,0.00016493,100570.0,100560.0,0.44258552]
[1733938209054,0.00016493,100570.0,100560.0,0.64289397]
[1733938209256,0.00016493,100570.0,100560.0,0.77635725]
[1733938209459,0.00016493,100570.0,100560.0,0.95430829]
[1733938210169,0.00016493,100570.0,100560.0,1.10130829]
[1733938210401,0.00016493,100570.0,100560.0,1.10430829]
[1733938210818,0.00116493,100570.0,100560.0,1.10130829]
[1733938211066,1.65008211,100610.0,100580.0,0.069591]
[1733938211225,0.10030845,100600.0,100590.0,0.069589]
[1733938211448,0.10030845,100600.0,100590.0,0.152889]
[1733938211658,0.10030845,100600.0,100590.0,0.200289]
[1733938211857,1.21202839,100610.0,100590.0,0.339459]
[1733938212056,1.08947726,100610.0,100590.0,0.339459]
[1733938212267,0.97073513,100610.0,100590.0,0.339459]
[1733938213230,0.97473513,100610.0,100590.0,0.339459]
[1733938213399,0.99523446,100610.0,100590.0,0.26987]
[1733938213601,0.005,100600.0,100590.0,0.27087]
[1733938214017,1.19402146,100610.0,100590.0,0.26987]
[1733938214217,1.20302146,100610.0,100590.0,0.27087]
[1733938214415,1.20302146,100610.0,100590.0,0.200284]
[1733938214552,1.19902146,100610.0,100590.0,0.1307]
[1733938214914,0.005,100600.0,100590.0,0.1317]
[1733938215113,0.005,100600.0,100590.0,0.201289]
[1733938215327,0.005,100600.0,100590.0,0.202289]
[1733938215528,0.005,100600.0,100590.0,0.20706839]
[1733938215910,0.006,100600.0,100590.0,0.20706839]
[1733938216668,0.005,100600.0,100590.0,0.20706839]
[1733938216804,0.006,100600.0,100590.0,0.20706839]
[1733938217006,0.001,100600.0,100590.0,0.20506839]
[1733938217471,0.23022126,100610.0,100590.0,0.13547939]
[1733938217612,0.30411545,100600.0,100590.0,0.00477939]
[1733938217819,0.32711545,100600.0,100590.0,0.00577939]
[1733938218065,0.12830845,100600.0,100590.0,0.001]
[1733938218268,0.16513901,100610.0,100590.0,0.149789]
[1733938218415,0.15473171,100610.0,100600.0,0.069582]
[1733938219076,0.15473171,100610.0,100600.0,0.07436139]
[1733938219274,0.13173171,100610.0,100600.0,0.07436139]
[1733938219450,0.13173171,100610.0,100600.0,0.00477939]
[1733938219630,1.01713998,100610.0,100600.0,0.00477939]
[1733938219828,1.44043998,100610.0,100600.0,0.00477939]
[1733938220040,0.198823,100600.0,100580.0,0.0009899]
[1733938220240,0.10030845,100590.0,100580.0,0.0009899]
[1733938220671,0.10030845,100590.0,100570.0,0.290294]
[1733938220928,0.10030845,100590.0,100570.0,0.220695]
[1733938221131,0.29913645,100590.0,100570.0,0.151097]
[1733938221359,0.29913645,100590.0,100570.0,0.0815]
[1733938221360,0.49797545,100590.0,100570.0,0.0815]
[1733938221566,0.49897545,100590.0,100570.0,0.0815]
[1733938221716,0.49797545,100590.0,100570.0,0.0815]
[1733938222100,0.30013645,100590.0,100570.0,0.0815]
[1733938222278,0.10130845,100590.0,100570.0,0.1511]
[1733938222510,0.10130845,100590.0,100580.0,0.069596]
[1733938222736,0.10130845,100590.0,100570.0,0.2207]
[1733938222943,0.10230845,100590.0,100570.0,0.290299]
[1733938223152,0.10130845,100590.0,100570.0,0.290299]
[1733938223636,0.10530845,100590.0,100570.0,0.290299]
[1733938223882,0.10630845,100590.0,100570.0,0.290299]
[1733938224887,0.10630845,100590.0,100570.0,0.220699]
[1733938225357,0.00045083,100580.0,100570.0,0.220699]
[1733938226547,0.00045083,100580.0,100570.0,0.221699]
[1733938226894,0.00045083,100580.0,100570.0,0.001]
[1733938226895,0.10075928,100580.0,100570.0,0.001]
[1733938227217,1.06222655,100580.0,100570.0,0.001]
[1733938227652,0.221866,100570.0,100560.0,0.0009817]
[1733938227851,0.221866,100570.0,100550.0,0.069613]
[1733938227852,0.65030845,100570.0,100550.0,0.069613]
[1733938228075,0.527,100570.0,100560.0,0.19811]
[1733938228348,0.527,100570.0,100560.0,0.19765917]
[1733938228531,0.62730845,100570.0,100560.0,0.19765917]
[1733938228736,0.527,100570.0,100560.0,0.19765917]
[1733938228939,0.527,100570.0,100560.0,0.1282141]
[1733938229125,0.527,100570.0,100560.0,0.00016493]
[1733938229126,0.62730845,100570.0,100560.0,0.00016493]
[1733938229348,0.65030845,100570.0,100560.0,0.00016493]
[1733938229729,0.65030845,100570.0,100560.0,0.00116493]
[1733938229929,0.84917445,100570.0,100560.0,0.00116493]
[1733938230379,0.85017445,100570.0,100560.0,0.00116493]
[1733938230802,0.62830845,100570.0,100560.0,0.00116493]
[1733938231006,0.528,100570.0,100560.0,0.11987493]
[1733938231212,0.001,100570.0,100560.0,0.11987493]
[1733938231432,0.001,100570.0,100560.0,0.3541691]
[1733938231687,0.001,100570.0,100560.0,0.35317493]
[1733938231885,0.001,100570.0,100560.0,0.20317493]
[1733938232410,0.001,100570.0,100560.0,0.13356493]
[1733938232624,0.001,100570.0,100560.0,0.00116493]
[1733938232869,0.10130845,100570.0,100560.0,0.00116493]
[1733938233073,0.12430845,100570.0,100560.0,0.00116493]
[1733938233707,0.001,100570.0,100560.0,0.07077493]
[1733938234405,0.001,100570.0,100560.0,0.11587493]
[1733938234744,0.001,100570.0,100560.0,0.11686928]
[1733938235438,0.001,100570.0,100560.0,0.19486928]
[1733938236359,0.001,100570.0,100560.0,0.12409435]
[1733938236773,0.001,100570.0,100560.0,0.19370435]
[1733938237710,0.001,100570.0,100560.0,0.29370435]
[1733938237918,0.001,100570.0,100560.0,0.19271]
[1733938238121,0.001,100570.0,100560.0,0.19370425]
[1733938239001,0.001,100570.0,100560.0,0.34470425]
[1733938239200,0.02713933,100590.0,100570.0,0.139196]
[1733938239462,0.10030845,100590.0,100580.0,0.00044625]
[1733938239664,0.10030845,100590.0,100580.0,0.0004462]
[1733938240044,0.60030845,100590.0,100580.0,0.0004462]
[1733938240474,0.60530845,100590.0,100580.0,0.0004462]
[1733938240853,0.62830845,100590.0,100580.0,0.0004462]
[1733938241050,0.82713445,100590.0,100580.0,0.0004462]
[1733938241489,0.82713445,100590.0,100570.0,0.0700482]
[1733938241678,0.10030845,100580.0,100570.0,0.0700482]
[1733938242310,0.10030845,100580.0,100570.0,0.0004462]
[1733938243236,0.10030845,100580.0,100570.0,0.0700492]
[1733938243407,0.5,100590.0,100580.0,0.069596]
[1733938243610,0.60230845,100590.0,100580.0,0.069596]
[1733938244222,0.60030845,100590.0,100580.0,0.069596]
[1733938244629,0.60030845,100590.0,100570.0,0.2092482]
[1733938244820,0.60530845,100590.0,100570.0,0.2092482]
[1733938245838,0.60030845,100590.0,100570.0,0.2092482]
[1733938246041,0.60530845,100590.0,100570.0,0.2092482]
[1733938246451,0.60530845,100590.0,100580.0,0.00514305]
[1733938246689,0.60530845,100590.0,100580.0,0.15583905]
[1733938246890,0.507,100590.0,100580.0,0.15583905]
[1733938247335,0.502,100590.0,100580.0,0.20243905]
[1733938247747,0.507,100590.0,100580.0,0.20243905]
[1733938248153,0.507,100590.0,100580.0,0.30343314]
[1733938248367,0.505,100590.0,100580.0,0.45243905]
[1733938248777,0.495,100590.0,100580.0,0.54139895]
[1733938249079,0.49,100590.0,100580.0,0.54139895]
[1733938249282,0.491,100590.0,100580.0,0.54139895]
[1733938249701,0.491,100590.0,100580.0,0.54439895]
[1733938250140,0.491,100590.0,100580.0,1.17487262]
[1733938250411,0.491,100590.0,100580.0,1.04146648]
[1733938250583,0.491,100590.0,100580.0,0.95252905]
[1733938250792,0.491,100590.0,100580.0,1.04145301]
[1733938250997,0.491,100590.0,100580.0,1.04445301]
[1733938251748,0.491,100590.0,100580.0,0.85552905]
[1733938251916,0.491,100590.0,100580.0,0.57782905]
[1733938252277,0.59130845,100590.0,100580.0,0.50823305]
[1733938252937,0.59130845,100590.0,100580.0,0.50523305]
[1733938253133,0.59030845,100590.0,100580.0,0.50223305]
[1733938253473,0.59130845,100590.0,100580.0,0.50223305]
[1733938253838,0.59630845,100590.0,100580.0,0.50223305]
[1733938254010,0.59830845,100590.0,100580.0,0.50223305]
[1733938254430,0.82013445,100590.0,100580.0,0.50223305]
[1733938255572,0.90924068,100590.0,100580.0,0.50223305]
[1733938255736,1.57286195,100590.0,100580.0,0.50223305]
[1733938255939,1.43624068,100590.0,100580.0,0.50223305]
[1733938257941,1.46317778,100590.0,100580.0,0.50223305]
[1733938259937,1.48305751,100590.0,100580.0,0.50223305]
[1733938260714,1.67935751,100590.0,100580.0,0.50223305]
[1733938261050,2.58051619,100590.0,100580.0,0.50223305]
[1733938261895,2.50775061,100590.0,100580.0,0.50223305]
[1733938262110,2.17953814,100590.0,100580.0,0.50223305]
[1733938262310,2.22409125,100590.0,100580.0,0.50223305]
[1733938264361,2.22409125,100590.0,100580.0,0.49709]
[1733938264576,2.16615988,100590.0,100580.0,0.29174102]
[1733938264784,1.68371252,100590.0,100580.0,0.29174102]
[1733938264987,1.68371252,100590.0,100580.0,0.28574102]
[1733938265613,1.68271252,100590.0,100580.0,0.28574102]
[1733938265822,0.753846,100580.0,100570.0,0.0004462]
[1733938266028,1.39174604,100580.0,100570.0,0.0004462]
[1733938266236,1.52537666,100580.0,100570.0,0.00479193]
[1733938266451,1.28874604,100580.0,100570.0,0.00479193]
[1733938266665,1.28874604,100580.0,100570.0,0.0004462]
[1733938266881,1.28874604,100580.0,100570.0,0.00479193]
[1733938267088,1.29074604,100580.0,100570.0,0.0004462]
[1733938267300,1.42426294,100580.0,100570.0,0.00479193]
[1733938267516,1.42926294,100580.0,100570.0,0.0004462]
[1733938267731,1.42926294,100580.0,100570.0,0.004796]
[1733938267938,1.42926294,100580.0,100570.0,0.0004462]
[1733938268147,1.42926294,100580.0,100570.0,0.00482179]
[1733938268368,1.42926294,100580.0,100570.0,0.0004462]
[1733938268780,1.42926294,100580.0,100570.0,0.00482179]
[1733938270731,1.57926294,100580.0,100570.0,0.00482179]
[1733938270941,1.42926294,100580.0,100570.0,0.00482179]
[1733938271351,1.518263,100580.0,100570.0,0.00482179]
[1733938271558,1.5177761,100580.0,100570.0,0.00482179]
[1733938271998,1.00865469,100580.0,100570.0,0.00482179]
[1733938272217,0.1963085,100580.0,100570.0,0.00482179]
[1733938272435,0.10730845,100580.0,100570.0,0.00482179]
[1733938272640,0.30615445,100580.0,100570.0,0.00482179]
[1733938273058,0.30615445,100580.0,100570.0,0.00700958]
[1733938273441,0.32915445,100580.0,100570.0,0.00482179]
[1733938274620,0.61577572,100580.0,100570.0,0.00482179]
[1733938274836,1.13827585,100580.0,100570.0,0.00482179]
[1733938275399,1.12877577,100580.0,100570.0,0.00482179]
[1733938275620,1.26227585,100580.0,100570.0,0.00482179]
[1733938275984,1.6627761,100580.0,100570.0,0.00482179]
[1733938276412,1.6627761,100580.0,100550.0,0.0466876]
[1733938276413,0.88550727,100560.0,100550.0,0.0009876]
[1733938276632,0.98581572,100560.0,100550.0,0.0009876]
[1733938276867,0.898906,100550.0,100530.0,0.0785]
[1733938277074,0.29923345,100540.0,100530.0,0.079484]
[1733938277312,0.10030845,100540.0,100530.0,0.079484]
[1733938277527,0.10030845,100540.0,100530.0,0.0785]
[1733938278173,0.551,100550.0,100530.0,0.14813]
[1733938278376,0.85021445,100550.0,100530.0,0.14868162]
[1733938278598,0.92901445,100550.0,100530.0,0.07905162]
[1733938278802,1.18575172,100550.0,100530.0,0.08005162]
[1733938279002,0.10030845,100540.0,100530.0,0.08005162]
[1733938279207,0.29923345,100540.0,100530.0,0.08005162]
[1733938279666,0.29923345,100540.0,100530.0,0.08105162]
[1733938280106,0.44923345,100540.0,100530.0,0.08005162]
[1733938280524,0.25030845,100540.0,100530.0,0.08305162]
[1733938280736,0.10030845,100540.0,100530.0,0.08205162]
[1733938284034,0.02004948,100550.0,100530.0,0.15267628]
[1733938284241,0.12035793,100550.0,100530.0,0.15168162]
[1733938284446,0.12035793,100550.0,100530.0,0.15167862]
[1733938284842,0.31926393,100550.0,100530.0,0.14867862]
[1733938284968,0.12035793,100550.0,100530.0,0.14867862]
[1733938285169,0.12135793,100550.0,100530.0,0.14967862]
[1733938286229,0.32026393,100550.0,100530.0,0.14967862]
[1733938286429,0.32026393,100550.0,100530.0,0.08005162]
[1733938286648,0.51917893,100550.0,100530.0,0.08005162]
[1733938286855,0.71809693,100550.0,100530.0,0.08005162]
[1733938287983,0.29923345,100540.0,100530.0,0.00195162]
[1733938289047,0.10030845,100540.0,100530.0,0.00095162]
[1733938289252,0.10030845,100540.0,100530.0,0.00395162]
[1733938289457,0.29923345,100540.0,100530.0,0.00395162]
[1733938292170,0.10030845,100540.0,100530.0,0.00395162]
[1733938292999,0.29923345,100540.0,100530.0,0.00395162]
[1733938293450,0.45885472,100540.0,100530.0,0.00395162]
[1733938293685,0.4220437,100540.0,100530.0,0.00395162]
[1733938294094,0.4220437,100540.0,100530.0,0.00095162]
[1733938294549,1.23566497,100540.0,100530.0,0.00195162]
[1733938294765,1.23666497,100540.0,100530.0,0.00195162]
[1733938294974,1.23666497,100540.0,100530.0,0.00095162]
[1733938295188,1.28196497,100540.0,100530.0,0.00095162]
[1733938295402,1.28196497,100540.0,100530.0,0.00195162]
[1733938296056,1.43196497,100540.0,100530.0,0.00195162]
[1733938296285,1.43196497,100540.0,100510.0,0.0013835]
[1733938296286,0.198965,100520.0,100510.0,0.0013835]
[1733938296490,0.10030845,100520.0,100510.0,0.0004]
[1733938296921,0.527,100530.0,100510.0,0.26667982]
[1733938297161,0.62730845,100530.0,100510.0,0.26667982]
[1733938297593,0.62730845,100530.0,100510.0,0.1264]
[1733938297804,0.001,100520.0,100510.0,0.197044]
[1733938298211,0.62730845,100530.0,100510.0,0.1264]
[1733938298424,0.83225345,100530.0,100510.0,0.1264]
[1733938298637,0.63330845,100530.0,100510.0,0.196044]
[1733938299063,0.83125445,100530.0,100510.0,0.1264]
[1733938299268,0.83125445,100530.0,100510.0,0.1274]
[1733938299699,0.10030845,100520.0,100510.0,0.1274]
[1733938300563,0.10130845,100520.0,100510.0,0.1264]
[1733938301686,0.10130845,100520.0,100510.0,0.0811]
[1733938301899,0.10130845,100520.0,100510.0,0.0014]
[1733938301900,0.45027345,100520.0,100510.0,0.0014]
[1733938305336,0.53932284,100520.0,100510.0,0.0014]
[1733938306146,0.45027345,100520.0,100510.0,0.0014]
[1733938306345,0.53932284,100520.0,100510.0,0.0014]
[1733938306964,1.06632284,100520.0,100510.0,0.0014]
[1733938307378,1.28014411,100520.0,100510.0,0.0014]
[1733938308020,1.14352284,100520.0,100510.0,0.0014]
[1733938308231,1.25344945,100520.0,100480.0,0.1431487]
[1733938308445,1.25344945,100520.0,100480.0,0.21479444]
[1733938308446,0.198988,100510.0,100480.0,0.21479444]
[1733938308696,0.29929645,100510.0,100480.0,0.28445644]
[1733938308892,0.29929645,100510.0,100480.0,0.21479444]
[1733938309325,0.4981436,100510.0,100480.0,0.2137994]
[1733938309536,0.10030845,100500.0,100480.0,0.0744774]
[1733938309737,0.29931645,100500.0,100480.0,0.0744774]
[1733938310145,0.29931645,100500.0,100480.0,0.0774774]
[1733938310351,0.43593772,100500.0,100480.0,0.0774774]
[1733938310552,0.43593772,100500.0,100480.0,0.0744774]
[1733938310553,0.63495472,100500.0,100480.0,0.0744774]
[1733938310764,0.83397672,100500.0,100480.0,0.00115525]
[1733938310958,0.83397672,100500.0,100480.0,0.00415525]
[1733938311262,0.83397672,100500.0,100480.0,0.00316555]
[1733938311469,0.199024,100490.0,100480.0,0.00316555]
[1733938311684,0.29933245,100490.0,100480.0,0.00016555]
[1733938311886,0.10030845,100490.0,100480.0,0.00016555]
[1733938312091,0.29933245,100490.0,100480.0,0.00016555]
[1733938312518,0.73765372,100490.0,100480.0,0.00116555]
[1733938312694,0.60103245,100490.0,100480.0,0.00116555]
[1733938312910,0.44933245,100490.0,100480.0,0.00116555]
[1733938313742,0.44933245,100490.0,100480.0,0.00016555]
[1733938313931,0.44933245,100490.0,100480.0,0.00316555]
[1733938314138,0.50283245,100490.0,100480.0,0.00316555]
[1733938314342,0.81245372,100490.0,100480.0,0.00016555]
[1733938314542,0.74405372,100490.0,100480.0,0.00016555]
[1733938314746,0.60943245,100490.0,100480.0,0.00016555]
[1733938315163,0.75943245,100490.0,100480.0,0.00016555]
[1733938315388,0.89605372,100490.0,100480.0,0.00016555]
[1733938316210,0.91986349,100490.0,100480.0,0.00016555]
[1733938316846,1.06986349,100490.0,100480.0,0.00016555]
[1733938317056,0.58726527,100480.0,100470.0,0.0013884]
[1733938317261,0.83757372,100480.0,100470.0,0.00144356]
[1733938317463,0.83757372,100480.0,100470.0,0.00045516]
[1733938318293,0.83757372,100480.0,100470.0,0.00145516]
[1733938319061,0.83857372,100480.0,100470.0,0.00145516]
[1733938319267,0.83757372,100480.0,100470.0,0.00145516]
[1733938319666,0.84657372,100480.0,100470.0,0.00045516]
[1733938319894,0.85057372,100480.0,100470.0,0.00045516]
[1733938320580,0.84657372,100480.0,100470.0,0.00045516]
[1733938320774,0.84957372,100480.0,100470.0,0.00045516]
[1733938321770,0.86931418,100480.0,100470.0,0.00045516]
[1733938323264,0.73269291,100480.0,100470.0,0.00045516]
[1733938323471,0.48109291,100480.0,100470.0,0.00045516]
[1733938323688,0.33109291,100480.0,100470.0,0.00045516]
[1733938323889,0.13204891,100480.0,100470.0,0.00045516]
[1733938324092,0.33109291,100480.0,100470.0,0.00045516]
[1733938324309,0.13204891,100480.0,100470.0,0.00045516]
[1733938324913,0.13204891,100480.0,100470.0,0.08055516]
[1733938324914,0.11230845,100480.0,100470.0,0.08055516]
[1733938325522,0.10330845,100480.0,100470.0,0.08055516]
[1733938325724,0.10830845,100480.0,100470.0,0.08055516]
[1733938326308,0.10530845,100480.0,100470.0,0.08055516]
[1733938326514,0.10930845,100480.0,100470.0,0.08055516]
[1733938327094,0.10530845,100480.0,100470.0,0.08055516]
[1733938327471,0.10630845,100480.0,100470.0,0.15022716]
[1733938327675,0.006,100480.0,100470.0,0.15022716]
[1733938328251,0.006,100480.0,100470.0,0.20012239]
[1733938329249,0.001,100480.0,100470.0,0.19912716]
[1733938329774,0.02380977,100490.0,100470.0,0.34045828]
[1733938330056,0.02380977,100490.0,100480.0,0.069665]
[1733938330277,0.01963141,100500.0,100480.0,0.14676012]
[1733938330520,0.11993986,100500.0,100480.0,0.14676012]
[1733938330759,0.11993986,100500.0,100480.0,0.21642512]
[1733938331234,0.11993986,100500.0,100480.0,0.14676012]
[1733938331473,0.001,100490.0,100480.0,0.14676012]
[1733938332388,0.11993986,100500.0,100480.0,0.21642512]
[1733938332580,0.001,100490.0,100480.0,0.14676012]
[1733938332925,0.001,100490.0,100480.0,0.145765]
[1733938333736,0.001,100490.0,100480.0,0.146765]
[1733938334551,0.001,100490.0,100480.0,0.14776012]
[1733938334817,0.001,100490.0,100480.0,0.19676012]
[1733938335197,0.10130845,100490.0,100480.0,0.1261]
[1733938335432,0.30033245,100490.0,100480.0,0.001]
[1733938336083,0.37993245,100490.0,100480.0,0.001]
[1733938336299,0.92993245,100490.0,100480.0,0.001]
[1733938338073,1.07993245,100490.0,100480.0,0.001]
[1733938339660,1.10062148,100490.0,100480.0,0.00554172]
[1733938340011,0.57362148,100490.0,100480.0,0.00554172]
[1733938340395,0.57362148,100490.0,100480.0,0.001]
[1733938340637,0.62302148,100490.0,100480.0,0.001]
[1733938341010,0.64242856,100490.0,100480.0,0.001]
[1733938341450,0.78197312,100490.0,100480.0,0.001]
[1733938341650,0.93197312,100490.0,100480.0,0.001]
[1733938342498,0.199044,100480.0,100470.0,0.00045516]
[1733938342712,0.29935245,100480.0,100470.0,0.00045516]
[1733938342920,0.82679866,100480.0,100470.0,0.00045516]
[1733938343317,0.82679866,100480.0,100470.0,0.00502526]
[1733938343539,0.82679866,100480.0,100470.0,0.00045516]
[1733938343718,0.83279866,100480.0,100470.0,0.00502526]
[1733938343951,0.83279866,100480.0,100470.0,0.00045516]
[1733938345214,0.83279866,100480.0,100470.0,0.00502526]
[1733938345405,0.83279866,100480.0,100470.0,0.00045516]
[1733938345750,0.83279866,100480.0,100470.0,0.00502934]
[1733938346593,1.14241993,100480.0,100470.0,0.00502934]
[1733938346796,1.21821993,100480.0,100470.0,0.00502934]
[1733938346995,1.30723627,100480.0,100470.0,0.00502934]
[1733938347201,1.44076078,100480.0,100470.0,0.00502934]
[1733938348184,1.30723627,100480.0,100470.0,0.00502934]
[1733938348582,1.45723627,100480.0,100470.0,0.00502934]
[1733938348784,1.59076078,100480.0,100470.0,0.00502934]
[1733938348989,1.06376078,100480.0,100470.0,0.00502934]
[1733938349397,0.195771,100480.0,100470.0,0.00502934]
[1733938349575,0.30579866,100480.0,100470.0,0.00502934]
[1733938352087,0.83279866,100480.0,100470.0,0.00502934]
[1733938352649,0.63375466,100480.0,100470.0,0.00502934]
[1733938353010,0.53344621,100480.0,100470.0,0.20500134]
[1733938353751,0.54469771,100480.0,100470.0,0.20500134]
[1733938354383,0.53969771,100480.0,100470.0,0.20500134]
[1733938354585,0.53869771,100480.0,100470.0,0.13532934]
[1733938354790,0.53969771,100480.0,100470.0,0.13532934]
[1733938354954,0.01269771,100480.0,100470.0,0.13632934]
[1733938355722,0.01269771,100480.0,100470.0,0.20600134]
[1733938356263,0.01269771,100480.0,100470.0,0.35600134]
[1733938356470,0.01269771,100480.0,100470.0,0.60630979]
[1733938356680,0.01269771,100480.0,100470.0,0.695411]
[1733938357506,0.01169771,100480.0,100470.0,1.25626523]
[1733938357726,0.01169771,100480.0,100470.0,1.38991705]
[1733938357727,7e-07,100480.0,100470.0,1.38991705]
[1733938357938,6.02061499,100500.0,100490.0,0.5284]
[1733938357939,6.0,100500.0,100490.0,0.5284]
[1733938358220,6.0,100500.0,100490.0,1.06699774]
[1733938358434,6.0,100500.0,100490.0,1.47197113]
[1733938358657,6.0,100500.0,100490.0,1.25168328]
[1733938358859,6.0,100500.0,100490.0,1.24998154]
[1733938359428,6.001,100500.0,100490.0,1.25198154]
[1733938359624,6.001,100500.0,100490.0,1.07897121]
[1733938360660,6.001,100500.0,100490.0,0.94546346]
[1733938361013,5.93199999,100500.0,100490.0,0.94546346]
[1733938361411,5.93199999,100500.0,100490.0,0.94534651]
[1733938361616,5.93199999,100500.0,100490.0,0.8564583]
[1733938361816,5.93199999,100500.0,100490.0,0.8547663]
[1733938362880,5.94325149,100500.0,100490.0,0.8547663]
[1733938364205,5.94325149,100500.0,100490.0,0.7047663]
[1733938365881,5.94325149,100500.0,100490.0,0.5547663]
[1733938366083,5.87425148,100500.0,100490.0,0.7047663]
[1733938366428,5.87425148,100500.0,100490.0,0.45445785]
[1733938366623,5.87425148,100500.0,100490.0,0.35445785]
[1733938367024,5.87425148,100500.0,100490.0,0.3472348]
[1733938367237,5.87325148,100500.0,100490.0,0.3482348]
[1733938367468,5.87325148,100500.0,100490.0,0.8457748]
[1733938367678,5.87325148,100500.0,100490.0,0.9487748]
[1733938369040,5.87325148,100500.0,100490.0,0.8487748]
[1733938370722,5.87325148,100500.0,100490.0,0.6987748]
[1733938370922,5.87325148,100500.0,100490.0,0.57765016]
[1733938371203,5.80425147,100500.0,100490.0,0.57765016]
[1733938371404,5.80425147,100500.0,100490.0,0.57987624]
[1733938371615,5.80425147,100500.0,100490.0,0.573198]
[1733938371837,5.80425147,100500.0,100490.0,0.57987625]
[1733938372994,5.80425147,100500.0,100490.0,0.57687625]
[1733938373389,5.80425147,100500.0,100490.0,0.57387625]
[1733938373635,5.80625147,100500.0,100490.0,0.57165016]
[1733938376052,5.73725146,100500.0,100490.0,0.57165016]
[1733938377452,5.73725146,100500.0,100490.0,0.50199216]
[1733938378472,5.7585613,100500.0,100490.0,0.57165016]
[1733938378832,5.7585613,100500.0,100490.0,0.50199216]
[1733938379584,5.7585613,100500.0,100490.0,0.57165016]
[1733938382753,5.7585613,100500.0,100490.0,0.76875016]
[1733938383074,5.73725146,100500.0,100490.0,0.84575016]
[1733938383502,5.73525146,100500.0,100490.0,1.04605861]
[1733938383942,5.73725146,100500.0,100490.0,1.04605861]
[1733938384385,5.73725146,100500.0,100490.0,1.04905861]
[1733938384587,5.73525146,100500.0,100490.0,0.94605861]
[1733938384796,5.73525146,100500.0,100490.0,1.04605861]
[1733938384993,5.73625146,100500.0,100490.0,1.20205861]
[1733938385255,5.73625146,100500.0,100490.0,1.35205861]